[Event "*** Titled Tuesday Blitz"]
[Site "Chess.com"]
[Date "2021.03.02"]
[Round "2"]
[White "Sanan_Sjugirov"]
[Black "CSB7"]
[Result "1-0"]
[WhiteElo "2930"]
[BlackElo "2567"]
[TimeControl "180+1"]
[EndTime "10:19:32 PST"]
[Termination "Sanan_Sjugirov won by resignation"]

1. e4 {[%clk 0:03:00.9]} 1... e5 {[%clk 0:02:56.4]} 2. Nf3 {[%clk 0:03:00.4]}
2... Nc6 {[%clk 0:02:56.8]} 3. Bc4 {[%clk 0:03:00.1]} 3... Nf6 {[%clk 0:02:54]}
4. d3 {[%clk 0:03:00.1]} 4... Bc5 {[%clk 0:02:53.5]} 5. h3 {[%clk 0:02:59]} 5...
O-O {[%clk 0:02:53.3]} 6. O-O {[%clk 0:02:57.7]} 6... d5 {[%clk 0:02:52.2]} 7.
exd5 {[%clk 0:02:57]} 7... Nxd5 {[%clk 0:02:53.1]} 8. Re1 {[%clk 0:02:48.5]}
8... Be6 {[%clk 0:02:43.6]} 9. Nbd2 {[%clk 0:02:41.6]} 9... f6 {[%clk
0:02:26.7]} 10. c3 {[%clk 0:02:36.1]} 10... Qd7 {[%clk 0:02:18.4]} 11. Ne4
{[%clk 0:02:26.6]} 11... Bb6 {[%clk 0:02:13.6]} 12. a4 {[%clk 0:02:14.3]} 12...
a6 {[%clk 0:02:08.4]} 13. b4 {[%clk 0:01:59.4]} 13... h6 {[%clk 0:01:55.1]} 14.
Qb3 {[%clk 0:01:56.5]} 14... a5 {[%clk 0:01:30.1]} 15. b5 {[%clk 0:01:48.6]}
15... Nce7 {[%clk 0:01:30.3]} 16. Ba3 {[%clk 0:01:47.7]} 16... Rfe8 {[%clk
0:01:24.2]} 17. d4 {[%clk 0:01:44.4]} 17... exd4 {[%clk 0:01:19.6]} 18. cxd4
{[%clk 0:01:31.1]} 18... Rad8 {[%clk 0:00:59.8]} 19. Nc5 {[%clk 0:01:28.4]}
19... Bxc5 {[%clk 0:00:59.7]} 20. dxc5 {[%clk 0:01:28.8]} 20... c6 {[%clk
0:01:00.1]} 21. Rad1 {[%clk 0:01:22.6]} 21... Bf7 {[%clk 0:00:55.2]} 22. Bc1
{[%clk 0:01:09.7]} 22... Ng6 {[%clk 0:00:47.3]} 23. Rxe8+ {[%clk 0:01:06.7]}
23... Qxe8 {[%clk 0:00:37.5]} 24. Re1 {[%clk 0:01:04.3]} 24... Qd7 {[%clk
0:00:37.2]} 25. Bd2 {[%clk 0:01:02.2]} 25... Ndf4 {[%clk 0:00:26]} 26. Bxa5
{[%clk 0:00:55.4]} 26... Ra8 {[%clk 0:00:23.4]} 27. Bd2 {[%clk 0:00:47]} 27...
Bxc4 {[%clk 0:00:19.5]} 28. Qxc4+ {[%clk 0:00:47.9]} 28... Qd5 {[%clk
0:00:19.9]} 29. Qxd5+ {[%clk 0:00:46.2]} 29... Nxd5 {[%clk 0:00:20.8]} 30. bxc6
{[%clk 0:00:45.8]} 30... bxc6 {[%clk 0:00:20.9]} 31. a5 {[%clk 0:00:46.3]} 31...
Nf8 {[%clk 0:00:18]} 32. Nd4 {[%clk 0:00:44.8]} 32... Nd7 {[%clk 0:00:18.4]} 33.
Nxc6 {[%clk 0:00:24.3]} 33... Nxc5 {[%clk 0:00:16.8]} 34. Rb1 {[%clk 0:00:24.2]}
34... Rc8 {[%clk 0:00:09.2]} 35. Rb8 {[%clk 0:00:13.4]} 35... Rxb8 {[%clk
0:00:08.9]} 36. Nxb8 {[%clk 0:00:14.3]} 36... Nc7 {[%clk 0:00:09.4]} 37. Bf4
{[%clk 0:00:12.7]} 37... N7a6 {[%clk 0:00:07.9]} 38. Nxa6 {[%clk 0:00:12.7]}
38... Nxa6 {[%clk 0:00:08.8]} 39. Bd6 {[%clk 0:00:12.6]} 39... Kf7 {[%clk
0:00:09.3]} 40. g4 {[%clk 0:00:12.1]} 40... Ke6 {[%clk 0:00:07.6]} 41. Bf8
{[%clk 0:00:12.1]} 41... Kf7 {[%clk 0:00:07.5]} 42. Ba3 {[%clk 0:00:12.1]} 42...
Ke6 {[%clk 0:00:07.7]} 43. Kg2 {[%clk 0:00:12.2]} 43... g6 {[%clk 0:00:08.2]}
44. Kf3 {[%clk 0:00:11.6]} 44... h5 {[%clk 0:00:05.6]} 45. gxh5 {[%clk
0:00:11.1]} 45... gxh5 {[%clk 0:00:06.5]} 46. Kg3 {[%clk 0:00:11.4]} 46... Kf5
{[%clk 0:00:06.2]} 47. Kh4 {[%clk 0:00:11.7]} 47... Kg6 {[%clk 0:00:06.4]} 48.
Bd6 {[%clk 0:00:11.7]} 48... Kh6 {[%clk 0:00:06.2]} 49. f3 {[%clk 0:00:11.8]}
49... Kg6 {[%clk 0:00:05.6]} 50. f4 {[%clk 0:00:11.9]} 50... f5 {[%clk
0:00:04.7]} 51. Bf8 {[%clk 0:00:09.2]} 51... Nb8 {[%clk 0:00:02.8]} 52. Bc5
{[%clk 0:00:08.2]} 52... Na6 {[%clk 0:00:02.5]} 53. Bd6 {[%clk 0:00:08.4]} 53...
Kh6 {[%clk 0:00:02.6]} 54. Kg3 {[%clk 0:00:05.7]} 54... Kg6 {[%clk 0:00:03.5]}
55. Kf3 {[%clk 0:00:05.9]} 55... Kf6 {[%clk 0:00:03.6]} 56. Kf2 {[%clk
0:00:05.1]} 56... Ke6 {[%clk 0:00:03.6]} 57. Be5 {[%clk 0:00:05.1]} 57... Ke7
{[%clk 0:00:02.8]} 58. Kg3 {[%clk 0:00:04.8]} 58... Kf7 {[%clk 0:00:03]} 59. Kf3
{[%clk 0:00:03.8]} 59... Ke6 {[%clk 0:00:03]} 60. Kf2 {[%clk 0:00:03.8]} 60...
Ke7 {[%clk 0:00:02.3]} 61. Bb2 {[%clk 0:00:04]} 61... Ke6 {[%clk 0:00:02.4]} 62.
Ba3 {[%clk 0:00:04]} 62... Kf7 {[%clk 0:00:02.3]} 63. Ke3 {[%clk 0:00:04.2]}
63... Ke6 {[%clk 0:00:02.8]} 64. Kd4 {[%clk 0:00:04.5]} 64... Nb8 {[%clk
0:00:02]} 65. Kc5 {[%clk 0:00:04.3]} 65... Kd7 {[%clk 0:00:02.4]} 66. Kd5 {[%clk
0:00:02.9]} 66... Nc6 {[%clk 0:00:02.3]} 67. a6 {[%clk 0:00:03.1]} 67... Kc7
{[%clk 0:00:02.8]} 68. Bc5 {[%clk 0:00:02.9]} 68... Na5 {[%clk 0:00:01.4]} 69.
a7 {[%clk 0:00:02.9]} 69... Kb7 {[%clk 0:00:01.3]} 70. Ke5 {[%clk 0:00:03.5]}
70... Nc4+ {[%clk 0:00:01.8]} 71. Kxf5 {[%clk 0:00:03.6]} 71... Nd2 {[%clk
0:00:02.1]} 72. Kg5 {[%clk 0:00:03.8]} 1-0

[Event "*** Titled Tuesday Blitz"]
[Site "Chess.com"]
[Date "2021.03.02"]
[Round "2"]
[White "juancruzarias"]
[Black "northridgehawk"]
[Result "1-0"]
[WhiteElo "2642"]
[BlackElo "2354"]
[TimeControl "180+1"]
[EndTime "10:19:37 PST"]
[Termination "juancruzarias won on time"]

1. d4 {[%clk 0:02:59.8]} 1... Nf6 {[%clk 0:02:58.9]} 2. Nf3 {[%clk 0:03:00]}
2... g6 {[%clk 0:02:59.3]} 3. Bg5 {[%clk 0:02:59.6]} 3... Bg7 {[%clk 0:02:59.1]}
4. Nbd2 {[%clk 0:03:00.1]} 4... d5 {[%clk 0:02:59.1]} 5. e3 {[%clk 0:02:59.5]}
5... Nbd7 {[%clk 0:02:59.4]} 6. Be2 {[%clk 0:02:59.2]} 6... O-O {[%clk
0:02:59.5]} 7. O-O {[%clk 0:02:59.4]} 7... c5 {[%clk 0:02:55.3]} 8. c3 {[%clk
0:02:58.8]} 8... b6 {[%clk 0:02:54.6]} 9. a4 {[%clk 0:02:56.4]} 9... Bb7 {[%clk
0:02:54.4]} 10. Qb3 {[%clk 0:02:55.8]} 10... a6 {[%clk 0:02:50.4]} 11. Rfd1
{[%clk 0:02:44.9]} 11... h6 {[%clk 0:02:49.3]} 12. Bh4 {[%clk 0:02:44]} 12...
Re8 {[%clk 0:02:47]} 13. h3 {[%clk 0:02:29.8]} 13... Rb8 {[%clk 0:02:41.2]} 14.
Bg3 {[%clk 0:02:29.2]} 14... Ra8 {[%clk 0:02:37.6]} 15. Qa2 {[%clk 0:02:08.5]}
15... Bc6 {[%clk 0:02:34]} 16. b4 {[%clk 0:02:06.7]} 16... Nh5 {[%clk
0:02:24.3]} 17. Bh2 {[%clk 0:02:05.6]} 17... e5 {[%clk 0:02:22.6]} 18. dxe5
{[%clk 0:01:42.1]} 18... Nxe5 {[%clk 0:02:21.5]} 19. Nxe5 {[%clk 0:01:42.1]}
19... Bxe5 {[%clk 0:02:21.4]} 20. Bxh5 {[%clk 0:01:41.9]} 20... Bxh2+ {[%clk
0:02:20.2]} 21. Kxh2 {[%clk 0:01:42.8]} 21... gxh5 {[%clk 0:02:17.8]} 22. Qc2
{[%clk 0:01:26.1]} 22... Qd6+ {[%clk 0:02:16.2]} 23. Kg1 {[%clk 0:01:25]} 23...
Qf6 {[%clk 0:02:09.2]} 24. bxc5 {[%clk 0:01:22.9]} 24... bxc5 {[%clk 0:02:08.3]}
25. Nb3 {[%clk 0:01:09.2]} 25... Qd6 {[%clk 0:01:49.5]} 26. Na5 {[%clk
0:01:07.1]} 26... Re6 {[%clk 0:01:44.3]} 27. Qf5 {[%clk 0:01:04.7]} 27... Rd8
{[%clk 0:01:35.5]} 28. Qxh5 {[%clk 0:01:02.9]} 28... Ba8 {[%clk 0:01:34.4]} 29.
Rab1 {[%clk 0:00:55.6]} 29... Rg6 {[%clk 0:01:33.6]} 30. Nb7 {[%clk 0:00:49.8]}
30... Bxb7 {[%clk 0:01:22.8]} 31. Rxb7 {[%clk 0:00:50.7]} 31... Qc6 {[%clk
0:01:21.5]} 32. Rbb1 {[%clk 0:00:41.7]} 32... d4 {[%clk 0:01:14]} 33. f3 {[%clk
0:00:33.4]} 33... Rd5 {[%clk 0:01:10.7]} 34. Qh4 {[%clk 0:00:19.8]} 34... Rdg5
{[%clk 0:00:53.1]} 35. Rb8+ {[%clk 0:00:16.8]} 35... Kh7 {[%clk 0:00:48.1]} 36.
Rd2 {[%clk 0:00:17]} 36... Qxf3 {[%clk 0:00:46.2]} 37. Qf2 {[%clk 0:00:14]}
37... Rxg2+ {[%clk 0:00:42.8]} 38. Qxg2 {[%clk 0:00:13.7]} 38... Qxe3+ {[%clk
0:00:39.3]} 39. Kh1 {[%clk 0:00:11.2]} 39... Qe1+ {[%clk 0:00:34.7]} 40. Kh2
{[%clk 0:00:10.9]} 40... Qe5+ {[%clk 0:00:35]} 41. Kh1 {[%clk 0:00:11.1]} 41...
Qxb8 {[%clk 0:00:34.5]} 42. Qf3 {[%clk 0:00:03.5]} 42... Qe8 {[%clk 0:00:25.9]}
43. Rf2 {[%clk 0:00:03.9]} 43... Kg7 {[%clk 0:00:23.4]} 44. cxd4 {[%clk
0:00:03.6]} 44... cxd4 {[%clk 0:00:23.3]} 45. Qf4 {[%clk 0:00:04]} 45... Qe1+
{[%clk 0:00:22.1]} 46. Rf1 {[%clk 0:00:03.5]} 46... Qe6 {[%clk 0:00:20.5]} 47.
Qxd4+ {[%clk 0:00:03.6]} 47... Kh7 {[%clk 0:00:18.5]} 48. Qd3 {[%clk 0:00:04.1]}
48... Qc6+ {[%clk 0:00:18.1]} 49. Qf3 {[%clk 0:00:04.6]} 49... Qe6 {[%clk
0:00:13.2]} 50. Qxf7+ {[%clk 0:00:04.7]} 50... Qxf7 {[%clk 0:00:13.7]} 51. Rxf7+
{[%clk 0:00:05.5]} 51... Kg8 {[%clk 0:00:13.8]} 52. Ra7 {[%clk 0:00:05.5]} 52...
Rb6 {[%clk 0:00:13.3]} 53. Kg2 {[%clk 0:00:05.7]} 53... Kf8 {[%clk 0:00:12.7]}
54. a5 {[%clk 0:00:05.7]} 54... Re6 {[%clk 0:00:11.9]} 55. Rb7 {[%clk
0:00:06.3]} 55... Ke8 {[%clk 0:00:12.2]} 56. Rb6 {[%clk 0:00:06.4]} 56... Re2+
{[%clk 0:00:12.1]} 57. Kf3 {[%clk 0:00:06.4]} 57... Ra2 {[%clk 0:00:13]} 58.
Rxa6 {[%clk 0:00:06.9]} 58... Kf7 {[%clk 0:00:13.4]} 59. Kg4 {[%clk 0:00:07.8]}
59... Kg7 {[%clk 0:00:13.2]} 60. h4 {[%clk 0:00:08.2]} 60... Ra4+ {[%clk
0:00:12]} 61. Kh5 {[%clk 0:00:08.5]} 61... Kg8 {[%clk 0:00:10.9]} 62. Ra7 {[%clk
0:00:08.3]} 62... Kh8 {[%clk 0:00:08]} 63. a6 {[%clk 0:00:08]} 63... Kg8 {[%clk
0:00:07.6]} 64. Kg6 {[%clk 0:00:07.5]} 64... Kf8 {[%clk 0:00:06.7]} 65. h5
{[%clk 0:00:07.1]} 65... Ra5 {[%clk 0:00:06.4]} 66. Kxh6 {[%clk 0:00:07.3]}
66... Kg8 {[%clk 0:00:05.4]} 67. Kg6 {[%clk 0:00:07.8]} 67... Kf8 {[%clk
0:00:05.5]} 68. h6 {[%clk 0:00:07.7]} 68... Ra1 {[%clk 0:00:05]} 69. Ra8+ {[%clk
0:00:07.7]} 69... Ke7 {[%clk 0:00:04.5]} 70. a7 {[%clk 0:00:08.3]} 70... Ra6+
{[%clk 0:00:03.2]} 71. Kh7 {[%clk 0:00:08.4]} 71... Kf7 {[%clk 0:00:03]} 72. Rg8
{[%clk 0:00:07.7]} 72... Kf6 {[%clk 0:00:02.4]} 73. a8=Q {[%clk 0:00:06.9]}
73... Re6 {[%clk 0:00:02.3]} 74. Qf3+ {[%clk 0:00:06.2]} 74... Ke7 {[%clk
0:00:02.3]} 75. Rg7+ {[%clk 0:00:06.2]} 75... Kd6 {[%clk 0:00:03.2]} 76. Qd3+
{[%clk 0:00:06.2]} 76... Ke5 {[%clk 0:00:03.6]} 77. Rg5+ {[%clk 0:00:06.7]}
77... Kf4 {[%clk 0:00:03]} 78. Qf5+ {[%clk 0:00:07.3]} 1-0

[Event "*** Titled Tuesday Blitz"]
[Site "Chess.com"]
[Date "2021.03.02"]
[Round "2"]
[White "sergeikim"]
[Black "shrek4life02"]
[Result "1/2-1/2"]
[WhiteElo "2510"]
[BlackElo "2722"]
[TimeControl "180+1"]
[EndTime "10:19:44 PST"]
[Termination "Game drawn by repetition"]

1. d4 {[%clk 0:03:00.9]} 1... c6 {[%clk 0:03:00.2]} 2. c4 {[%clk 0:03:00.9]}
2... d5 {[%clk 0:03:00.8]} 3. Nf3 {[%clk 0:03:00.5]} 3... Nf6 {[%clk 0:03:01.7]}
4. Qc2 {[%clk 0:03:00.4]} 4... g6 {[%clk 0:03:01.9]} 5. e3 {[%clk 0:02:59.7]}
5... Bf5 {[%clk 0:03:02.5]} 6. Bd3 {[%clk 0:02:59.4]} 6... Bxd3 {[%clk 0:03:03]}
7. Qxd3 {[%clk 0:02:59.4]} 7... Bg7 {[%clk 0:03:03.7]} 8. O-O {[%clk 0:02:59.2]}
8... Nbd7 {[%clk 0:03:02.5]} 9. Nc3 {[%clk 0:02:59.1]} 9... O-O {[%clk
0:03:02.7]} 10. e4 {[%clk 0:02:58.8]} 10... dxe4 {[%clk 0:03:00.5]} 11. Nxe4
{[%clk 0:02:58.9]} 11... Nxe4 {[%clk 0:03:01.4]} 12. Qxe4 {[%clk 0:02:59.1]}
12... Nf6 {[%clk 0:03:01.4]} 13. Qe2 {[%clk 0:02:58.4]} 13... Re8 {[%clk
0:03:01.5]} 14. Bd2 {[%clk 0:02:57.4]} 14... Qb6 {[%clk 0:03:01.6]} 15. Bc3
{[%clk 0:02:57.2]} 15... Rad8 {[%clk 0:03:01.1]} 16. Ne5 {[%clk 0:02:49.4]}
16... Nd7 {[%clk 0:02:57.3]} 17. c5 {[%clk 0:02:35.8]} 17... Qc7 {[%clk
0:02:55.6]} 18. Nc4 {[%clk 0:02:29.1]} 18... Qf4 {[%clk 0:02:17.6]} 19. g3
{[%clk 0:02:20.1]} 19... Qb8 {[%clk 0:02:15]} 20. Rad1 {[%clk 0:02:03]} 20...
Nf6 {[%clk 0:02:12.8]} 21. Rfe1 {[%clk 0:01:49.3]} 21... Nd5 {[%clk 0:02:12.5]}
22. Bd2 {[%clk 0:01:45.1]} 22... b5 {[%clk 0:02:10.2]} 23. Na5 {[%clk
0:01:37.3]} 23... Qc7 {[%clk 0:02:05]} 24. Nb3 {[%clk 0:01:35.5]} 24... Qc8
{[%clk 0:02:00.5]} 25. Bg5 {[%clk 0:01:25.5]} 25... Rd7 {[%clk 0:01:58.7]} 26.
Qf3 {[%clk 0:01:21.5]} 26... h6 {[%clk 0:01:55]} 27. Bc1 {[%clk 0:01:20.1]}
27... Red8 {[%clk 0:01:50.2]} 28. Re2 {[%clk 0:01:12.1]} 28... e6 {[%clk
0:01:50.2]} 29. Rde1 {[%clk 0:01:11.2]} 29... Ne7 {[%clk 0:01:49]} 30. Be3
{[%clk 0:01:06.3]} 30... Nf5 {[%clk 0:01:48.4]} 31. h3 {[%clk 0:00:56]} 31...
Bxd4 {[%clk 0:01:34.8]} 32. Nxd4 {[%clk 0:00:48.2]} 32... Nxd4 {[%clk
0:01:35.7]} 33. Qf6 {[%clk 0:00:48]} 33... Nxe2+ {[%clk 0:01:04.9]} 34. Rxe2
{[%clk 0:00:47.1]} 34... Kh7 {[%clk 0:01:05.3]} 35. Bf4 {[%clk 0:00:42.3]} 35...
Rg8 {[%clk 0:00:51.2]} 36. Be5 {[%clk 0:00:27.6]} 36... Qd8 {[%clk 0:00:48.9]}
37. Qf3 {[%clk 0:00:26.9]} 37... Qc8 {[%clk 0:00:31.9]} 38. Kh2 {[%clk
0:00:24.8]} 38... Rf8 {[%clk 0:00:24.7]} 39. Qf6 {[%clk 0:00:20.4]} 39... Rg8
{[%clk 0:00:25.4]} 40. Re4 {[%clk 0:00:16.5]} 40... Qf8 {[%clk 0:00:23.8]} 41.
Rh4 {[%clk 0:00:13.3]} 41... Qg7 {[%clk 0:00:24.4]} 42. Qf4 {[%clk 0:00:06.2]}
42... f6 {[%clk 0:00:21.3]} 43. Bxf6 {[%clk 0:00:05.5]} 43... Rf7 {[%clk
0:00:21.6]} 44. Bxg7 {[%clk 0:00:04.5]} 44... Rxf4 {[%clk 0:00:22.1]} 45. Rxf4
{[%clk 0:00:04.5]} 45... Rxg7 {[%clk 0:00:22.2]} 46. a4 {[%clk 0:00:03.6]} 46...
Rb7 {[%clk 0:00:20.4]} 47. a5 {[%clk 0:00:02.8]} 47... b4 {[%clk 0:00:21]} 48.
Re4 {[%clk 0:00:02.4]} 48... Kg7 {[%clk 0:00:21.7]} 49. Rxe6 {[%clk 0:00:01.3]}
49... Rb5 {[%clk 0:00:22.6]} 50. Rxc6 {[%clk 0:00:01.2]} 50... Rxa5 {[%clk
0:00:23.4]} 51. Rc7+ {[%clk 0:00:01.6]} 51... Kf6 {[%clk 0:00:24.3]} 52. Kg2
{[%clk 0:00:02.2]} 52... b3 {[%clk 0:00:25]} 53. c6 {[%clk 0:00:02.5]} 53... Ra2
{[%clk 0:00:25.7]} 54. Rb7 {[%clk 0:00:03]} 54... Rxb2 {[%clk 0:00:26.3]} 55. c7
{[%clk 0:00:03.3]} 55... Rc2 {[%clk 0:00:27]} 56. Rxb3 {[%clk 0:00:04.2]} 56...
Rxc7 {[%clk 0:00:27.8]} 57. Ra3 {[%clk 0:00:04.4]} 57... Ke5 {[%clk 0:00:28.2]}
58. Ra6 {[%clk 0:00:04.8]} 58... Kf5 {[%clk 0:00:27.7]} 59. g4+ {[%clk
0:00:04.5]} 59... Kg5 {[%clk 0:00:27.8]} 60. Ra5+ {[%clk 0:00:04.5]} 60... Kf6
{[%clk 0:00:28.2]} 61. Ra6+ {[%clk 0:00:05.4]} 61... Kg7 {[%clk 0:00:28.9]} 62.
Ra5 {[%clk 0:00:05.6]} 62... g5 {[%clk 0:00:28.4]} 63. Kg3 {[%clk 0:00:06]}
63... Rc3+ {[%clk 0:00:28.7]} 64. f3 {[%clk 0:00:06.9]} 64... Rc7 {[%clk
0:00:29.6]} 65. h4 {[%clk 0:00:07.1]} 65... Kg6 {[%clk 0:00:30.3]} 66. h5+
{[%clk 0:00:07.3]} 66... Kg7 {[%clk 0:00:31.2]} 67. Ra6 {[%clk 0:00:08.2]} 67...
Kh7 {[%clk 0:00:31.5]} 68. Kg2 {[%clk 0:00:08.4]} 68... Re7 {[%clk 0:00:31.7]}
69. Kg3 {[%clk 0:00:09.3]} 69... Kg7 {[%clk 0:00:31.2]} 70. Kg2 {[%clk
0:00:10.2]} 70... Rb7 {[%clk 0:00:24.2]} 71. Kg3 {[%clk 0:00:10.3]} 71... Kh7
{[%clk 0:00:24.9]} 72. Kg2 {[%clk 0:00:10.3]} 72... Rf7 {[%clk 0:00:25.5]} 73.
Kg3 {[%clk 0:00:10.4]} 73... Rg7 {[%clk 0:00:22.2]} 74. Kg2 {[%clk 0:00:10.3]}
74... Rf7 {[%clk 0:00:23]} 75. Kg3 {[%clk 0:00:10.5]} 75... Rd7 {[%clk
0:00:23.6]} 76. Kg2 {[%clk 0:00:10.6]} 76... Rc7 {[%clk 0:00:24.4]} 77. Kg3
{[%clk 0:00:10.6]} 77... Rb7 {[%clk 0:00:25.2]} 78. Kg2 {[%clk 0:00:10.5]} 78...
Kg7 {[%clk 0:00:21.9]} 79. Kg3 {[%clk 0:00:10.5]} 79... Rc7 {[%clk 0:00:22.2]}
80. Kg2 {[%clk 0:00:10.4]} 80... Rd7 {[%clk 0:00:22.4]} 81. Kg3 {[%clk
0:00:10.4]} 81... Re7 {[%clk 0:00:23.2]} 82. Kg2 {[%clk 0:00:10.3]} 82... Rf7
{[%clk 0:00:24]} 83. Kg3 {[%clk 0:00:10.4]} 83... Re7 {[%clk 0:00:24.8]} 1/2-1/2

[Event "*** Titled Tuesday Blitz"]
[Site "Chess.com"]
[Date "2021.03.02"]
[Round "2"]
[White "Meri-Arabidze"]
[Black "Fortitudine"]
[Result "1/2-1/2"]
[WhiteElo "2631"]
[BlackElo "2338"]
[TimeControl "180+1"]
[EndTime "10:19:54 PST"]
[Termination "Game drawn - insufficient material"]

1. Nf3 {[%clk 0:03:00.9]} 1... c5 {[%clk 0:02:58.2]} 2. c4 {[%clk 0:03:00.5]}
2... Nf6 {[%clk 0:02:57.7]} 3. Nc3 {[%clk 0:03:01.4]} 3... Nc6 {[%clk
0:02:54.6]} 4. g3 {[%clk 0:03:01.1]} 4... g6 {[%clk 0:02:53.9]} 5. Bg2 {[%clk
0:03:01]} 5... Bg7 {[%clk 0:02:53.9]} 6. O-O {[%clk 0:03:01.6]} 6... O-O {[%clk
0:02:54.5]} 7. d3 {[%clk 0:03:02.1]} 7... d6 {[%clk 0:02:54.3]} 8. Bg5 {[%clk
0:03:01.4]} 8... Rb8 {[%clk 0:02:53.4]} 9. a3 {[%clk 0:02:57.7]} 9... a6 {[%clk
0:02:53.2]} 10. Ne1 {[%clk 0:02:52]} 10... Bd7 {[%clk 0:02:52.8]} 11. Rb1 {[%clk
0:02:46.2]} 11... b5 {[%clk 0:02:50.4]} 12. cxb5 {[%clk 0:02:46.5]} 12... axb5
{[%clk 0:02:51.3]} 13. b4 {[%clk 0:02:47.1]} 13... cxb4 {[%clk 0:02:52.2]} 14.
axb4 {[%clk 0:02:48]} 14... h6 {[%clk 0:02:50.8]} 15. Bd2 {[%clk 0:02:47]} 15...
Kh7 {[%clk 0:02:34.5]} 16. Nc2 {[%clk 0:02:46.4]} 16... Qb6 {[%clk 0:02:16.9]}
17. e4 {[%clk 0:02:42.5]} 17... e5 {[%clk 0:01:53.7]} 18. Be3 {[%clk 0:02:34.6]}
18... Nd4 {[%clk 0:01:48.2]} 19. Ne2 {[%clk 0:02:34]} 19... Ng4 {[%clk
0:01:41.5]} 20. Bxd4 {[%clk 0:02:23]} 20... exd4 {[%clk 0:01:40.6]} 21. h3
{[%clk 0:02:23.2]} 21... Ne5 {[%clk 0:01:22.6]} 22. Ncxd4 {[%clk 0:02:22.5]}
22... Rfc8 {[%clk 0:00:59.9]} 23. Kh2 {[%clk 0:02:20.3]} 23... Ng4+ {[%clk
0:00:53.6]} 24. hxg4 {[%clk 0:02:19.9]} 24... Bxd4 {[%clk 0:00:54.2]} 25. Nxd4
{[%clk 0:02:16.2]} 25... Qxd4 {[%clk 0:00:55.1]} 26. Bf3 {[%clk 0:02:07.9]}
26... Rc3 {[%clk 0:00:51.5]} 27. Be2 {[%clk 0:02:08.2]} 27... Rbc8 {[%clk
0:00:48.5]} 28. Kg2 {[%clk 0:02:08.3]} 28... Be6 {[%clk 0:00:43.3]} 29. Rh1
{[%clk 0:02:06.5]} 29... Kg7 {[%clk 0:00:41.4]} 30. Qd2 {[%clk 0:02:05.7]} 30...
g5 {[%clk 0:00:41.8]} 31. Qb2 {[%clk 0:01:50.5]} 31... f6 {[%clk 0:00:29.6]} 32.
Qa1 {[%clk 0:01:24.1]} 32... R8c7 {[%clk 0:00:22.5]} 33. Rbc1 {[%clk 0:01:03.6]}
33... d5 {[%clk 0:00:22.8]} 34. Rxc3 {[%clk 0:01:02.1]} 34... Rxc3 {[%clk
0:00:23.7]} 35. Rc1 {[%clk 0:00:58.1]} 35... Rxd3 {[%clk 0:00:10.3]} 36. Bxd3
{[%clk 0:00:55.9]} 36... Qxd3 {[%clk 0:00:11.2]} 37. Qa7+ {[%clk 0:00:50.8]}
37... Kg6 {[%clk 0:00:10.8]} 38. Qe3 {[%clk 0:00:38.6]} 38... Qxe4+ {[%clk
0:00:09.7]} 39. Qxe4+ {[%clk 0:00:37.8]} 39... dxe4 {[%clk 0:00:10.6]} 40. Rc5
{[%clk 0:00:38]} 40... Bc4 {[%clk 0:00:11]} 41. Rc7 {[%clk 0:00:23.9]} 41... Bd3
{[%clk 0:00:05.7]} 42. Rd7 {[%clk 0:00:22.3]} 42... h5 {[%clk 0:00:04.5]} 43.
gxh5+ {[%clk 0:00:21.5]} 43... Kxh5 {[%clk 0:00:05.4]} 44. f3 {[%clk 0:00:20.1]}
44... f5 {[%clk 0:00:05.7]} 45. fxe4 {[%clk 0:00:16.8]} 45... fxe4 {[%clk
0:00:06.6]} 46. Kf2 {[%clk 0:00:17.1]} 46... Kg4 {[%clk 0:00:06.4]} 47. Rd5
{[%clk 0:00:17.1]} 47... Kh5 {[%clk 0:00:04.8]} 48. Ke3 {[%clk 0:00:16.2]} 48...
Kg4 {[%clk 0:00:05.3]} 49. Re5 {[%clk 0:00:15.9]} 49... Kh5 {[%clk 0:00:01.3]}
50. Re8 {[%clk 0:00:13.3]} 50... Kg4 {[%clk 0:00:01.5]} 51. Rg8 {[%clk
0:00:13.9]} 51... Kh5 {[%clk 0:00:01.5]} 52. Rg7 {[%clk 0:00:13.7]} 52... Kg4
{[%clk 0:00:02.4]} 53. Kd4 {[%clk 0:00:13.5]} 53... Kf5 {[%clk 0:00:03.3]} 54.
Re7 {[%clk 0:00:10.7]} 54... Kg4 {[%clk 0:00:04.2]} 55. Re5 {[%clk 0:00:10.6]}
55... Kh5 {[%clk 0:00:04.8]} 56. Ke3 {[%clk 0:00:09.3]} 56... Kg4 {[%clk
0:00:05.7]} 57. Kf2 {[%clk 0:00:08.3]} 57... Kh5 {[%clk 0:00:05.9]} 58. Kg2
{[%clk 0:00:06.7]} 58... Kg4 {[%clk 0:00:06.4]} 59. Rc5 {[%clk 0:00:06.8]} 59...
e3 {[%clk 0:00:05.9]} 60. Re5 {[%clk 0:00:04.8]} 60... e2 {[%clk 0:00:06.3]} 61.
Kf2 {[%clk 0:00:05.2]} 61... e1=Q+ {[%clk 0:00:04.8]} 62. Rxe1 {[%clk
0:00:04.6]} 62... Kf5 {[%clk 0:00:04.9]} 63. Rc1 {[%clk 0:00:04.5]} 63... Bc4
{[%clk 0:00:05]} 64. Rc3 {[%clk 0:00:04.5]} 64... g4 {[%clk 0:00:04.8]} 65. Re3
{[%clk 0:00:04.7]} 65... Kf6 {[%clk 0:00:04.3]} 66. Re8 {[%clk 0:00:05.2]} 66...
Kf5 {[%clk 0:00:04.6]} 67. Rc8 {[%clk 0:00:05.8]} 67... Ke4 {[%clk 0:00:04.5]}
68. Rc5 {[%clk 0:00:06.7]} 68... Kd4 {[%clk 0:00:04.7]} 69. Rg5 {[%clk
0:00:06.8]} 69... Kc3 {[%clk 0:00:05.6]} 70. Rxg4 {[%clk 0:00:06.8]} 70... Kxb4
{[%clk 0:00:06.5]} 71. Rf4 {[%clk 0:00:07]} 71... Kc5 {[%clk 0:00:07.1]} 72. g4
{[%clk 0:00:07.2]} 72... b4 {[%clk 0:00:07.9]} 73. g5 {[%clk 0:00:07.1]} 73...
b3 {[%clk 0:00:08.4]} 74. Rh4 {[%clk 0:00:04.7]} 74... b2 {[%clk 0:00:07.3]} 75.
Rh1 {[%clk 0:00:04.8]} 75... Bd3 {[%clk 0:00:07.7]} 76. Ke3 {[%clk 0:00:04.5]}
76... b1=Q {[%clk 0:00:07.8]} 77. Rxb1 {[%clk 0:00:04.5]} 77... Bxb1 {[%clk
0:00:08.7]} 78. g6 {[%clk 0:00:04.8]} 78... Bxg6 {[%clk 0:00:09.2]} 1/2-1/2